bitfinex-derivatives/quotes_ETHF0:USTF0_20250709
["timestamp","ask_amount","ask_price","bid_price","bid_amount"]
[1752091633013,3.9393907,2753.6,2753.4,0.72617]
[1752091633218,3.9393907,2753.6,2753.0,1.81575]
[1752091633417,3.9393907,2753.6,2753.5,0.72616]
[1752091633418,3.2132407,2753.6,2753.5,0.72616]
[1752091633722,0.72633,2752.9,2752.7,3.968]
[1752091633922,7.01697163,2753.6,2752.8,1.81588]
[1752091633923,0.7262,2753.4,2752.8,1.81588]
[1752091634125,0.72639,2752.7,2752.2,5.97495]
[1752091634320,0.72639,2752.7,2752.3,5.2748]
[1752091634622,2.88263093,2752.9,2752.7,0.72637]
[1752091634823,0.72634,2752.9,2752.4,1.81614]
[1752091635023,0.72636,2752.8,2752.5,5.2748]
[1752091635213,3.2078,2753.1,2752.5,4.3239]
[1752091635420,0.72634,2752.9,2752.8,0.72635]
[1752091635922,0.72631,2753.0,2752.9,0.72631]
[1752091636219,0.7264,2752.6,2752.5,4.3239]
[1752091636623,5.02353,2753.1,2752.5,0.72641]
[1752091636817,0.72641,2752.6,2752.5,0.72643]
[1752091637021,3.2078,2753.1,2752.3,1.8162]
[1752091637223,0.72641,2752.6,2752.5,0.72642]
[1752091637522,3.2078,2753.1,2752.5,0.9509]
[1752091637717,3.93409,2753.1,2752.9,0.72631]
[1752091637913,3.2078,2753.1,2753.0,0.7263]
[1752091638121,3.2078,2753.1,2753.0,1.6772]
[1752091638724,3.2078,2753.1,2753.0,0.7263]
[1752091638917,0.72631,2753.0,2752.9,0.72632]
[1752091639114,0.72632,2752.9,2752.8,0.72633]
[1752091639319,0.72637,2752.8,2752.7,0.72637]
[1752091639523,3.2078,2752.8,2752.2,3.2078]
[1752091639722,1.81601,2752.6,2752.0,0.18559795]
[1752091639922,4.3638,2752.7,2752.0,0.18559795]
[1752091640126,0.72646,2752.4,2752.3,0.72646]
[1752091640330,1.81601,2752.6,2752.0,0.18559795]
[1752091640625,3.93415,2752.8,2752.7,0.72637]
[1752091640827,3.2078,2752.8,2752.7,0.72637]
[1752091641023,3.2078,2753.1,2752.4,0.9509]
[1752091641525,3.2078,2753.1,2752.5,1.81608]
[1752091641720,0.7263,2753.0,2752.9,0.7263]
[1752091642121,3.2078,2753.1,2753.0,0.7263]
[1752091642723,3.2078,2753.4,2753.0,0.7263]
[1752091642918,0.0054407,2753.6,2753.5,0.72616]
[1752091644330,3.2078,2754.1,2754.0,0.72603]
[1752091645627,3.2078,2754.4,2754.3,0.72595]
[1752091645828,0.72596,2754.3,2754.2,0.72596]
[1752091646029,3.2078,2754.4,2754.3,0.72595]
[1752091646418,5.59473,2755.0,2754.3,0.72595]
[1752091646419,0.72583,2754.8,2754.3,0.72595]
[1752091646625,3.2078,2754.7,2754.6,0.72587]
[1752091647725,3.93365,2754.7,2754.6,0.72587]
[1752091647927,3.2078,2754.7,2754.6,0.72587]
[1752091648731,3.2078,2755.1,2755.0,0.72577]
[1752091649428,3.93354,2755.1,2755.0,0.72577]
[1752091650134,3.2078,2755.1,2755.0,0.72577]
[1752091650430,1.6468,2755.3,2755.2,0.72572]
[1752091651022,0.9211,2755.3,2755.2,0.72572]
[1752091651727,3.2078,2755.7,2755.6,0.72561]
[1752091652122,3.93338,2755.7,2755.6,0.72561]
[1752091652621,3.2078,2755.7,2755.6,0.72561]
[1752091653632,3.93338,2755.7,2755.6,0.72561]
[1752091654432,3.2078,2755.7,2755.6,0.72561]
[1752091655427,1.81403,2755.6,2755.2,0.72569]
[1752091655728,3.2078,2755.3,2755.2,1.67662]
[1752091656431,0.72567,2755.4,2755.3,0.72569]
[1752091656731,3.2078,2755.4,2755.3,0.72569]
[1752091656925,0.72565,2755.5,2755.4,0.72566]
[1752091656926,0.72564,2755.5,2755.4,0.72566]
[1752091657122,0.72568,2755.4,2755.3,0.72566]
[1752091657326,0.72565,2755.5,2755.4,0.72564]
[1752091658430,0.72564,2755.6,2755.5,0.72561]
[1752091659030,0.72574,2755.1,2755.0,0.0054407]
[1752091659632,0.72592,2754.5,2754.4,0.7259]
[1752091659826,0.72599,2754.2,2754.1,0.72599]
[1752091660024,0.72603,2754.1,2754.0,0.72602]
[1752091660227,0.726,2754.2,2754.1,0.726]
[1752091660430,3.2078,2754.4,2754.3,0.72595]
[1752091660834,0.72596,2754.3,2754.2,0.72596]
[1752091661029,0.72596,2754.3,2754.2,0.72597]
[1752091661222,0.72596,2754.3,2753.8,1.81522]
[1752091661428,0.72597,2754.3,2754.2,0.72598]
[1752091661736,3.2078,2754.4,2753.6,5.02313]
[1752091661932,5.02287,2754.1,2753.7,0.7261]
[1752091662236,0.72622,2753.3,2753.2,3.93403]
[1752091662430,0.72622,2753.3,2753.2,3.93404]
[1752091662735,3.2078,2754.1,2754.0,0.72603]
[1752091662929,3.2078,2754.1,2753.3,3.7808]
[1752091663128,0.72604,2754.0,2753.9,0.72604]
[1752091663328,3.2078,2754.1,2754.0,0.72603]
[1752091665631,0.0054407,2754.3,2753.8,0.9589]
[1752091665830,0.0054407,2754.3,2754.2,0.72598]
[1752091666533,0.0054407,2754.3,2754.2,1.68488]
[1752091666830,3.2078,2754.8,2754.7,0.72585]
[1752091667329,0.72599,2754.2,2753.6,4.1667]
[1752091667534,0.72609,2753.8,2753.7,0.7261]
[1752091667735,3.2078,2753.9,2753.8,0.72608]
[1752091668031,1.81442,2755.1,2754.1,1.81502]
[1752091668032,3.9337,2754.6,2754.1,1.81502]
[1752091668236,3.2078,2754.6,2753.7,3.9325]
[1752091668436,3.2078,2754.3,2753.7,3.9325]
[1752091668633,3.2078,2754.0,2753.5,0.9589]
[1752091668827,3.93383,2754.0,2753.9,0.72606]
[1752091669031,0.72607,2753.9,2753.8,0.72607]
[1752091669328,0.72611,2753.7,2753.6,4.3301]
[1752091669532,0.72608,2753.9,2753.6,4.3301]
[1752091669733,0.72608,2753.9,2753.8,0.72609]
[1752091669934,37.76316,2754.5,2753.7,1.81529]
[1752091669935,3.2078,2754.3,2753.7,1.81529]
[1752091670134,3.2078,2754.3,2754.2,0.72598]
[1752091670839,0.72593,2754.5,2754.4,0.72591]
[1752091671033,3.2078,2754.6,2754.5,0.7259]
[1752091671230,3.93367,2754.6,2754.5,0.7259]
[1752091671539,0.72592,2754.5,2754.4,0.72591]
[1752091672038,3.93369,2754.6,2754.5,0.7259]
[1752091672340,0.72591,2754.5,2754.4,0.7259]
[1752091672933,3.93369,2754.6,2754.5,0.7259]
[1752091673139,3.2078,2754.9,2754.7,0.72582]
[1752091673341,0.72584,2754.8,2754.7,0.72582]
[1752091673635,0.72582,2754.8,2754.7,0.72584]
[1752091673835,0.72587,2754.7,2754.6,0.72586]
[1752091674032,5.66798093,2754.7,2753.6,0.9589]
[1752091674232,0.72602,2754.1,2754.0,0.72601]
[1752091674535,0.72603,2754.1,2754.0,0.72601]
[1752091674739,3.93379,2754.2,2754.1,0.72601]
[1752091675341,3.2078,2754.2,2753.8,0.0054407]
[1752091675541,0.72606,2753.9,2753.8,0.0054407]
[1752091675939,3.93386,2753.9,2753.8,0.0054407]
[1752091676432,3.93381,2754.2,2753.8,0.9643407]
[1752091676639,3.2078,2754.2,2753.9,0.72605]
[1752091676937,0.72606,2754.0,2753.9,0.72605]
[1752091677139,0.72606,2753.9,2753.8,5.0266107]
[1752091677334,3.2078,2754.2,2753.8,4.3005407]
[1752091677533,3.2078,2754.2,2754.1,0.72601]
[1752091678742,0.72604,2754.1,2754.0,0.72601]
[1752091678942,0.72606,2753.9,2753.8,5.0266207]
[1752091679137,3.93386,2753.9,2753.8,0.0054407]
[1752091679443,0.72631,2753.0,2752.9,0.72631]
[1752091679643,3.93408,2753.1,2753.0,0.72627]
[1752091680239,3.93407,2753.1,2753.0,0.72627]
[1752091680438,3.2078,2753.1,2753.0,1.68517]
[1752091680639,3.2078,2753.6,2753.3,1.81555]
[1752091680942,3.2078,2753.6,2753.5,0.72617]
[1752091681343,3.2078,2753.6,2753.5,1.68507]
[1752091681740,3.2078,2753.9,2753.6,2.54147]
[1752091681939,0.0054407,2754.3,2754.2,0.72598]
[1752091682241,0.7313907,2754.3,2754.2,0.51303998]
[1752091682442,0.7313907,2754.3,2754.2,1.23901998]
[1752091682845,0.7313907,2754.3,2754.2,0.72598]
[1752091683445,0.72606,2754.0,2753.9,0.72605]
[1752091683645,3.2078,2754.0,2753.9,0.72605]
[1752091684340,3.2078,2754.9,2754.8,0.72582]
[1752091684741,0.9707,2755.3,2755.2,0.72572]
[1752091684940,3.2078,2755.4,2755.3,0.72569]
[1752091685640,8.2078,2755.4,2754.3,3.7951]
[1752091685838,3.2078,2754.8,2754.5,0.72589]
[1752091686038,3.2078,2754.8,2754.7,0.72585]
[1752091686238,3.2078,2755.4,2754.6,1.81467]
[1752091686436,3.2078,2755.4,2754.7,4.3949]
[1752091686642,3.2078,2755.3,2754.7,4.3949]
[1752091687440,0.72593,2754.4,2754.3,4.52104]
[1752091687644,0.72594,2754.4,2754.3,0.72594]
[1752091687840,0.72593,2754.4,2754.3,0.72594]
[1752091688039,0.72596,2754.3,2754.1,3.2078]
[1752091688245,0.72598,2754.2,2754.1,3.2078]
[1752091688450,0.72596,2754.3,2754.2,0.72597]
[1752091688745,3.93372,2754.5,2754.1,3.2078]
[1752091688945,3.93372,2754.5,2754.3,0.72594]
[1752091689245,0.72593,2754.4,2754.2,4.83017]
[1752091689544,1.81489,2754.3,2753.8,7.8593]
[1752091689743,5.02259,2754.5,2753.8,7.8593]
[1752091690047,0.72606,2753.9,2753.8,7.8593]
[1752091690238,0.72603,2754.1,2754.0,0.72602]
[1752091690441,0.72594,2754.4,2754.3,0.72594]
[1752091690944,3.2078,2754.5,2754.4,0.72593]
[1752091691244,3.2078,2755.3,2754.6,0.72586]
[1752091691443,1.8143,2755.2,2754.3,3.2078]
[1752091691645,0.72577,2755.1,2754.5,1.81476]
[1752091691843,1.8142,2755.4,2754.8,0.72581]
[1752091692042,0.72579,2755.0,2754.9,0.72579]
[1752091692247,0.72579,2755.0,2754.6,3.2078]
[1752091692248,1.27553391,2755.0,2754.6,3.2078]
[1752091692545,0.72595,2754.4,2754.3,0.72595]
[1752091692747,0.72597,2754.3,2754.2,0.72596]
[1752091692939,2.00171775,2754.3,2754.2,0.72596]
[1752091693144,1.27574775,2754.3,2754.2,0.72596]
[1752091693345,1.27574775,2754.3,2754.2,5.13176]
[1752091694953,0.72581,2754.9,2754.8,0.72582]
[1752091695164,0.72582,2754.8,2754.5,3.2078]
[1752091695450,1.276804,2754.7,2754.6,5.09718]
[1752091696249,1.276804,2754.7,2754.6,8.98648]
[1752091696753,3.25682617,2755.2,2755.1,0.72574]
[1752091697049,3.25682617,2755.3,2755.2,0.72572]
[1752091697250,0.72585,2754.7,2754.6,4.61517]
[1752091697453,2.88263093,2755.1,2754.6,3.8893]
[1752091697651,4.34243489,2755.3,2754.7,0.9311]
[1752091697850,3.25653361,2755.2,2755.1,0.72574]
[1752091698159,0.72573,2755.2,2755.1,0.72573]
[1752091698345,0.72571,2755.3,2755.2,0.72571]
[1752091698551,0.72574,2755.2,2755.1,0.72573]
[1752091698746,5.06972414,2755.4,2754.7,4.1389]
[1752091698952,0.72582,2754.8,2754.7,3.93363]
[1752091699152,0.72581,2754.9,2754.8,0.72581]
[1752091699354,0.72582,2754.8,2754.7,3.2078]
[1752091699952,0.72588,2754.6,2754.5,0.72589]
[1752091700253,0.72588,2754.6,2754.3,7.1727]
[1752091700254,0.72589,2754.6,2754.3,7.1727]
[1752091700558,0.72592,2754.5,2754.4,0.72591]
[1752091701148,0.72593,2754.4,2754.3,3.2078]
[1752091701353,3.25552414,2754.7,2754.3,3.2078]
[1752091701548,0.72593,2754.4,2754.3,3.2078]
[1752091701754,0.72593,2754.4,2754.3,3.93375]
[1752091701952,0.72593,2754.4,2754.3,3.2078]
[1752091702354,0.72604,2754.1,2754.0,3.2078]
[1752091702549,0.72604,2754.1,2754.0,3.93383]
[1752091702747,0.72604,2754.1,2754.0,3.2078]
[1752091703253,3.25552414,2754.5,2754.0,3.2078]
[1752091703451,3.25552414,2754.5,2753.7,5.62518]
[1752091703452,0.72609,2753.8,2753.7,7.9488]
[1752091703657,0.72604,2754.0,2753.9,0.72606]
[1752091704056,0.72609,2753.8,2753.7,7.0177]
[1752091704253,0.72609,2753.8,2753.7,3.2078]
[1752091704852,0.72609,2753.8,2753.3,3.2078]
[1752091704853,0.72619,2753.4,2753.3,3.2078]
[1752091705257,4.69802093,2753.6,2753.1,3.7857]
[1752091705258,0.72624,2753.2,2753.1,4.51196]
[1752091705553,4.69802093,2753.6,2752.9,3.2078]
[1752091705554,0.7263,2753.0,2752.9,3.2078]
[1752091706861,0.72638,2752.7,2752.6,0.72639]
[1752091707060,0.72636,2752.8,2752.7,0.72637]
[1752091707257,3.25552414,2753.4,2752.7,0.9311]
[1752091707454,10.54315507,2753.9,2752.9,3.2078]
[1752091707659,0.72606,2753.9,2753.7,0.72609]
[1752091707860,0.72621,2753.4,2753.3,0.72622]
[1752091708057,1.81529,2753.7,2753.0,4.0336]
[1752091708261,1.81555,2753.3,2752.6,3.2078]
[1752091708460,1.81564,2753.2,2752.4,1.81615]
[1752091708656,0.72648,2752.3,2752.1,2.14473814]
[1752091708960,0.72649,2752.3,2752.1,0.72652]
[1752091709161,3.2078,2753.5,2752.1,5.0]
[1752091709360,0.72634,2752.9,2752.3,0.72647]
[1752091709659,6.46332414,2753.5,2752.2,7.493]
[1752091709660,6.09043093,2753.2,2752.2,7.493]
[1752091709860,4.0766,2753.7,2752.2,3.2078]
[1752091709861,0.72648,2752.3,2752.2,3.2078]
[1752091710172,0.72653,2752.1,2752.0,0.18559795]
[1752091712054,6.09043093,2752.8,2752.0,4.33959795]
[1752091712258,0.72651,2752.2,2752.1,3.2078]
[1752091712462,1.81575,2753.0,2752.1,3.2078]
[1752091712761,10.54562414,2753.5,2752.4,3.2078]
[1752091712958,0.72653,2752.1,2752.0,7.95e-06]
[1752091713157,3.60916093,2752.1,2752.0,7.95e-06]
[1752091713357,0.72674,2751.3,2751.2,3.2078]
[1752091713662,1.81645,2752.0,2751.2,8.2078]
[1752091713863,7.90672093,2752.2,2751.1,4.154]
[1752091713864,1.81634,2752.1,2751.5,3.2078]
[1752091714059,3.2078,2752.2,2751.5,3.2078]
[1752091714060,0.72666,2751.6,2751.5,3.2078]
[1752091714256,3.93432,2752.2,2751.5,3.2078]
[1752091714463,0.72658,2752.0,2751.8,3.2078]
[1752091714660,2.88263093,2752.3,2752.0,0.72655]
[1752091714863,0.72657,2752.0,2751.8,0.7266]
[1752091715063,0.72655,2752.1,2751.8,0.7266]
[1752091715260,0.72656,2752.0,2751.8,0.7266]
[1752091715455,2.88263093,2752.3,2751.4,5.02457]
[1752091715660,2.88263093,2751.5,2750.5,2.14473814]
[1752091715857,3.2078,2751.7,2750.4,3.2078]
[1752091716066,3.2078,2751.7,2751.1,0.72679]
[1752091716268,0.72677,2751.2,2750.9,0.72683]
[1752091716563,2.88263093,2751.4,2750.9,0.72683]
[1752091716957,4.2573,2751.3,2750.7,3.2078]
[1752091717164,2.88263093,2751.0,2750.7,3.2078]
[1752091717364,0.72686,2750.9,2750.7,3.9347]
[1752091717564,0.72688,2750.8,2750.7,3.2078]
[1752091717857,0.72688,2750.8,2749.9,1.81778]
[1752091717858,0.9785,2750.8,2750.2,3.2078]
[1752091718062,0.9785,2750.8,2750.5,0.72694]
[1752091718257,3.2078,2750.9,2749.9,3.2078]
[1752091718665,0.72691,2750.7,2750.5,0.72695]
[1752091718968,0.72689,2750.8,2750.6,0.72693]
[1752091719264,3.2078,2750.9,2750.8,0.72688]
[1752091719568,1.8167,2751.6,2751.3,0.72674]
[1752091719569,3.2078,2751.4,2751.3,0.72674]
[1752091719766,3.2078,2751.4,2750.7,1.8172]
[1752091719767,4.1863,2751.4,2750.2,0.9878]
[1752091719973,2.88263093,2750.5,2750.1,3.93485]
[1752091720262,3.2078,2750.2,2748.8,4.20449364]
[1752091720462,0.9785,2750.4,2750.0,0.72709]
[1752091720463,3.2078,2750.1,2750.0,0.72709]
[1752091720870,9.1863,2750.1,2749.6,0.72717]
[1752091721069,3.93498,2749.7,2749.4,0.72723]
[1752091721270,3.2078,2749.7,2749.6,0.72719]
[1752091722269,3.2078,2749.7,2749.0,0.9878]
[1752091722564,2.88263093,2749.2,2749.0,0.9878]
[1752091722866,3.2078,2749.1,2749.0,0.9878]
[1752091723067,3.2078,2749.1,2749.0,1.71515]
[1752091723264,3.2078,2749.4,2749.0,0.9878]
[1752091723470,6.09043093,2749.9,2749.0,0.9878]
[1752091723671,3.2078,2749.8,2749.7,0.72715]
[1752091724073,3.2078,2750.2,2750.1,0.72706]
[1752091724273,0.72695,2750.6,2749.8,5.65154]
[1752091724462,3.2078,2750.8,2749.9,1.81779]
[1752091724663,3.2078,2750.8,2749.8,3.8337]
[1752091724863,0.72697,2750.5,2750.2,0.72701]
[1752091725068,0.72694,2750.6,2750.3,0.727]
[1752091725368,3.2078,2750.8,2749.8,3.8337]
[1752091725574,3.2078,2751.1,2750.4,1.81746]
[1752091725768,3.2078,2751.1,2751.0,0.72682]
[1752091725968,3.2078,2751.4,2751.0,0.9878]
[1752091726169,3.2078,2751.4,2751.2,0.72676]
[1752091726365,3.2078,2751.4,2750.8,3.8337]
[1752091726366,3.2078,2751.4,2751.3,0.72674]
[1752091726764,3.2078,2751.4,2750.9,0.9878]
[1752091726968,3.2078,2751.4,2750.8,3.8337]
[1752091726969,0.72693,2750.6,2750.3,3.2078]
[1752091727170,0.72693,2750.6,2750.0,0.9878]
[1752091727370,0.72693,2750.6,2750.2,0.72703]
[1752091727569,0.72693,2750.6,2749.5,5.02582]
[1752091727570,7.88263093,2750.6,2748.3,3.21669364]
[1752091727772,3.2078,2749.3,2748.6,0.9878]
[1752091727978,3.2078,2749.3,2749.2,0.7273]
[1752091728273,3.2078,2749.3,2749.0,0.72733]
[1752091728665,3.93507,2749.3,2748.7,7.37969795]
[1752091728869,3.93507,2749.3,2749.0,0.72734]
[1752091729069,3.2078,2749.3,2749.1,4.3204]
[1752091729772,3.2078,2749.3,2749.2,0.7273]
[1752091729976,3.2078,2750.0,2749.8,0.72713]
[1752091730179,3.2078,2750.0,2749.9,4.2131]
[1752091730575,3.2078,2750.0,2749.9,4.94021]
[1752091730774,0.00545127,2750.2,2749.9,4.2131]
[1752091730975,0.72707,2750.1,2749.9,4.2131]
[1752091731174,0.72709,2750.0,2749.9,4.2131]
[1752091731370,3.93489,2750.0,2749.9,4.2131]
[1752091731576,3.9349,2750.0,2749.7,0.72715]
[1752091731776,3.9349,2750.0,2749.7,4.2131]
[1752091731777,0.72711,2749.9,2749.7,4.2131]
[1752091731974,3.2078,2750.0,2749.9,0.72711]
[1752091732470,3.2078,2750.0,2749.8,0.72712]
[1752091732679,3.93489,2750.0,2749.9,4.2131]
[1752091732877,3.2078,2750.0,2749.9,4.2131]
[1752091733086,3.93489,2750.0,2749.9,4.2131]
[1752091733880,3.2078,2750.0,2749.2,3.2078]
[1752091734081,4.7057022,2750.2,2749.0,0.9878]
[1752091734082,0.72725,2749.4,2749.3,4.1539]
[1752091734282,0.72733,2749.1,2749.0,3.7476]
[1752091734485,0.72738,2748.9,2748.8,4.1539]
[1752091734684,0.72735,2749.1,2748.8,4.1539]
[1752091734884,0.72736,2749.0,2748.8,4.1539]
[1752091735079,3.93514,2749.1,2748.8,4.1539]
[1752091735291,3.2078,2749.1,2748.8,4.1539]
[1752091735480,3.2078,2749.1,2749.0,0.72735]
[1752091735784,3.2078,2749.7,2749.0,0.9878]
[1752091735987,0.72719,2749.6,2749.1,4.1539]
[1752091736178,3.2078,2749.7,2749.1,4.1539]
[1752091736583,0.72725,2749.4,2749.3,0.72726]
[1752091736786,0.7273,2749.2,2749.1,4.1539]
[1752091737082,3.2078,2749.4,2748.7,0.18559795]
[1752091737286,3.2078,2749.4,2748.8,4.1746]
[1752091737287,0.72734,2749.1,2748.8,4.1746]
[1752091737587,0.72735,2749.0,2748.9,0.72736]
[1752091737785,0.72735,2749.0,2748.9,0.72737]
[1752091738380,3.2078,2749.1,2748.7,0.18559795]
[1752091738587,0.72738,2748.9,2748.8,4.1746]
[1752091738890,0.7274,2748.9,2748.8,0.7274]
[1752091739084,0.72736,2749.0,2748.9,0.72736]
[1752091739284,3.2078,2749.1,2748.7,0.18559795]
[1752091739591,0.7274,2748.8,2748.7,0.18559795]
[1752091740290,0.7274,2748.9,2748.7,0.18559795]
[1752091740585,3.93514,2749.1,2749.0,0.72735]
[1752091740786,0.72738,2748.9,2748.8,4.1228]
[1752091741093,3.2078,2749.1,2748.8,4.1228]
[1752091741285,0.72735,2749.0,2748.9,0.72736]
[1752091741486,0.7274,2748.8,2748.7,0.18559795]
[1752091741686,3.9352,2748.8,2748.7,0.18559795]
[1752091742186,1.8187,2748.6,2748.0,0.9878]
[1752091742391,3.2078,2748.5,2748.0,0.9878]
[1752091742693,0.72759,2748.1,2748.0,0.9878]
[1752091742892,3.2078,2748.2,2748.1,0.72759]
[1752091743187,0.00545127,2748.5,2748.1,1.81892]
[1752091743381,0.00545127,2748.5,2748.4,0.72751]
[1752091743588,1.27e-06,2748.5,2748.4,0.72751]
[1752091743991,1.27e-06,2748.5,2748.4,5.72751]
[1752091744297,1.27e-06,2748.5,2748.4,0.72751]
[1752091744685,3.20780127,2748.5,2747.8,4.1956]
[1752091744892,3.20780127,2748.5,2747.8,3.2078]
[1752091745091,5.44206591,2748.4,2748.2,0.72755]
[1752091745389,5.44206591,2748.4,2747.4,3.9382]
[1752091745390,3.14122131,2748.3,2746.8,3.2078]
[1752091745586,3.93547,2747.8,2747.7,0.72768]
[1752091745788,3.93547,2747.8,2747.1,3.2078]
[1752091745789,0.72761,2748.1,2747.2,1.81957]
[1752091745990,1.819,2748.1,2747.1,3.2078]
[1752091746291,1.819,2748.1,2746.8,3.8522]
[1752091746292,0.72772,2747.6,2747.5,0.00545127]
[1752091746482,34.68597714,2747.6,2746.2,3.2078]
[1752091746789,3.2078,2746.3,2745.9,4.1154]
[1752091746994,7.06893093,2746.3,2745.9,4.1154]
[1752091747188,0.7281,2746.2,2745.9,4.84356]
[1752091747484,34.433,2746.7,2746.1,1.82031]
[1752091747485,3.2078,2746.7,2746.1,1.82031]
[1752091747689,3.2078,2746.7,2746.2,7.3232]
[1752091747890,3.2078,2746.7,2746.6,0.72799]
[1752091748192,0.0054613,2746.7,2746.5,3.2078]
[1752091748386,0.0054613,2746.7,2746.6,5.19929]
[1752091748582,0.0054613,2746.7,2746.6,4.4713]
[1752091748786,0.0054613,2746.7,2746.6,10.19929]
[1752091748992,0.0054613,2746.7,2746.6,14.13439]
[1752091749194,0.0054613,2746.7,2746.6,9.13439]
[1752091749385,0.7334213,2746.7,2746.6,8.4064]
[1752091749586,0.0054613,2746.7,2746.5,0.72801]
[1752091749892,0.0054613,2746.7,2746.6,0.72799]
[1752091750393,0.0054613,2746.7,2746.6,1.8204]
[1752091750586,0.0054613,2746.7,2746.6,10.75619]
[1752091750587,1.3e-06,2746.7,2746.6,10.75619]
[1752091750989,3.2078,2747.6,2747.5,0.72775]
[1752091751286,1.31982869,2747.6,2747.5,0.72775]
[1752091751485,1.31982869,2747.6,2747.5,5.72775]
[1752091751787,0.955,2748.2,2747.6,1.8193]
[1752091752087,1.31829684,2748.1,2747.7,3.8894]
[1752091752293,1.39178708,2748.0,2747.9,0.72764]
[1752091752586,1.39178708,2748.0,2747.9,4.98094]
[1752091752990,1.39178708,2748.0,2747.9,0.72764]
[1752091753188,1.39178708,2748.0,2747.9,5.72764]
[1752091753783,3.2078,2748.7,2748.6,0.72744]
[1752091753990,3.2078,2749.0,2748.1,5.02673]
[1752091754188,3.2078,2748.7,2748.6,0.72744]
[1752091754391,0.72738,2748.9,2748.2,4.2533]
[1752091754586,3.2078,2749.0,2748.2,4.2533]
[1752091754788,3.2078,2749.0,2748.3,0.72752]
[1752091754986,3.2078,2748.7,2748.4,0.72749]
[1752091755185,3.9353,2748.5,2748.4,0.9096]
[1752091755385,3.2078,2748.5,2748.4,0.9096]
[1752091755590,3.2078,2748.5,2748.4,7.54671]
[1752091755992,3.2078,2748.9,2748.8,0.7274]
[1752091756194,3.2078,2748.9,2748.4,1.8192]
[1752091756491,3.2078,2748.9,2748.8,0.7274]
[1752091757190,3.2078,2748.9,2748.5,10.867]
[1752091757392,0.72746,2748.6,2748.5,2.5468]
[1752091757698,0.72748,2748.5,2748.4,0.52013663]
[1752091757891,0.72748,2748.5,2747.1,3.2078]
[1752091757892,0.72775,2747.5,2747.1,3.2078]
[1752091758195,0.72776,2747.5,2747.4,0.72777]
[1752091758395,3.2078,2748.0,2747.4,0.9365]
[1752091758589,3.2078,2748.3,2747.8,3.2078]
[1752091758794,3.2078,2748.4,2747.9,5.0436]
[1752091758994,0.72754,2748.3,2748.2,0.72755]
[1752091759297,3.2078,2748.4,2747.9,5.0436]
[1752091759298,5.02639,2748.7,2748.1,0.72757]
[1752091759495,0.72756,2748.2,2748.1,0.72757]
[1752091759789,3.2078,2748.4,2747.9,4.83473]
[1752091759986,3.2078,2748.4,2748.0,0.7276]
[1752091760186,0.72759,2748.2,2748.1,0.9097]
[1752091760497,4.3136,2748.6,2748.1,0.9097]
[1752091760796,0.72755,2748.3,2748.1,1.63729]
[1752091760992,0.72755,2748.3,2748.1,1.63728]
[1752091761192,0.72755,2748.3,2748.2,0.72756]
[1752091761392,3.2078,2748.7,2748.2,0.9365]
[1752091761588,3.2078,2748.7,2748.6,0.72746]
[1752091761788,3.2078,2749.1,2748.9,0.72738]
[1752091762093,0.72737,2749.0,2748.8,0.72739]
[1752091762292,0.72737,2749.0,2748.9,0.72738]
[1752091762496,3.2078,2749.1,2749.0,0.72735]
[1752091762988,3.2078,2749.1,2748.5,4.4439]
[1752091763296,3.2078,2749.1,2749.0,0.72735]
[1752091763692,3.93506,2749.4,2748.8,1.81852]
[1752091763899,3.2078,2749.4,2749.3,0.72727]
[1752091764294,7.5632,2749.7,2748.8,8.076]
[1752091764495,0.72733,2749.1,2749.0,4.431]
[1752091764892,3.2078,2749.1,2748.4,3.2078]
[1752091765095,3.2078,2749.1,2748.5,0.72747]
[1752091765096,5.02617,2749.1,2748.5,0.72747]
[1752091765297,5.02617,2749.1,2748.6,0.72745]
[1752091765298,0.72745,2748.7,2748.6,0.72745]
[1752091765501,3.2078,2749.1,2748.6,0.9365]
[1752091765704,1.39475177,2749.0,2748.7,5.3675]
[1752091765905,0.72732,2749.2,2748.8,4.431]
[1752091766200,0.72731,2749.2,2748.9,0.9365]
[1752091766697,3.2078,2749.1,2748.2,6.40036]
[1752091766902,3.2078,2749.1,2748.8,0.72738]
[1752091767096,0.72738,2748.9,2748.8,0.72738]
[1752091767292,3.2078,2749.1,2749.0,0.72735]
[1752091767495,4.60291001,2749.1,2749.0,0.72735]
[1752091767699,4.60291001,2749.1,2749.0,5.03505]
[1752091767897,4.60291001,2749.1,2749.0,0.72735]
[1752091768094,5.33024001,2749.1,2749.0,0.72735]
[1752091768299,2.12244001,2749.1,2749.0,0.72735]
[1752091768499,1.39511001,2749.1,2749.0,0.72735]
[1752091768799,0.72735,2749.0,2748.9,1.8189]
[1752091769000,1.39511001,2749.0,2748.9,2.54625]
[1752091769301,0.72731,2749.2,2749.1,0.72733]
[1752091769496,2.11629805,2749.2,2749.1,0.72733]
[1752091769697,2.11629805,2749.2,2748.9,1.8189]
[1752091769698,1.38898805,2749.2,2748.9,1.8189]
[1752091769896,3.2078,2749.4,2748.9,1.8189]
[1752091770094,0.72735,2749.0,2748.9,1.8189]
[1752091770301,3.2078,2749.1,2748.9,1.8189]
[1752091770499,0.72735,2749.0,2748.9,1.8189]
[1752091771405,3.93514,2749.1,2748.9,2.54628]
[1752091771702,3.2078,2749.1,2748.9,1.8189]
[1752091771899,3.2078,2749.1,2749.0,0.72735]
[1752091772105,3.2078,2749.1,2748.9,2.54627]
[1752091772301,0.72735,2749.0,2748.9,1.8189]
[1752091774604,3.2078,2749.1,2748.9,1.8189]